bitfinex-derivatives/quotes_SOLF0:USTF0_20250819
["timestamp","ask_amount","ask_price","bid_price","bid_amount"]
[1755629221644,3.06,177.44,177.34,10.36551607]
[1755629221942,3.06,177.44,177.37,0.03990804]
[1755629222543,259.27733246,177.48,177.37,0.03990804]
[1755629222846,5.637,177.41,177.37,0.03990804]
[1755629223049,270.54653246,177.48,177.37,12.22596547]
[1755629223050,259.27733246,177.48,177.37,12.22596547]
[1755629223241,259.27733246,177.48,177.39,4.72671607]
[1755629223739,143.54,177.55,177.41,7.4992494]
[1755629223947,3.06,177.56,177.41,155.82596547]
[1755629224250,3.06,177.56,177.43,4.72671607]
[1755629224741,3.06,177.56,177.48,0.0377038]
[1755629225447,5.6342,177.49,177.48,0.0377038]
[1755629227246,8.6942,177.49,177.48,0.0377038]
[1755629228252,3.06,177.49,177.41,143.6]
[1755629228747,3.06,177.49,177.37,0.03]
[1755629229548,0.03810638,177.45,177.37,0.03]
[1755629229753,3.06,177.44,177.33,143.55]
[1755629230550,0.04025573,177.4,177.33,143.55]
[1755629230949,0.04025573,177.4,177.33,143.52]
[1755629231152,0.04025573,177.4,177.34,0.03]
[1755629231860,0.04025573,177.4,177.33,143.52]
[1755629232351,0.04025573,177.4,177.3,0.03]
[1755629232352,3.06,177.39,177.28,379.08]
[1755629233145,0.04102127,177.35,177.28,379.08]
[1755629233552,5.6406,177.29,177.28,379.08]
[1755629233757,0.04102127,177.35,177.28,379.08]
[1755629233958,3.06,177.36,177.28,379.08]
[1755629234256,0.04081403,177.33,177.28,379.08]
[1755629234446,3.10081403,177.33,177.28,379.08]
[1755629234646,5.6412,177.27,177.26,143.6]
[1755629235045,3.06,177.31,177.26,143.6]
[1755629235452,0.03599651,177.28,177.26,143.6]
[1755629235855,3.06,177.32,177.26,143.6]
[1755629236152,0.03581057,177.29,177.27,0.03]
[1755629236358,0.03581057,177.29,177.28,0.03]
[1755629236557,5.6394,177.33,177.28,0.03]
[1755629236753,3.06,177.36,177.27,0.03]
[1755629237059,0.04010608,177.3,177.29,0.03]
[1755629237556,5.639,177.34,177.3,0.03]
[1755629237756,0.03649741,177.31,177.3,0.03]
[1755629240448,5.6391,177.34,177.31,0.03]
[1755629240653,3.06,177.37,177.29,0.03]
[1755629241354,3.06,177.37,177.26,143.6]
[1755629242259,3.06,177.37,177.21,7.4992494]
[1755629242457,3.06,177.37,177.22,143.56]
[1755629243062,3.06,177.35,177.22,143.56]
[1755629243454,11.2774,177.35,177.22,143.56]
[1755629243655,3.06,177.34,177.22,143.56]
[1755629243855,5.6425,177.23,177.22,143.56]
[1755629245160,3.06,177.28,177.22,143.56]
[1755629246553,3.06,177.34,177.22,143.59]
[1755629247664,3.06,177.34,177.26,0.03577863]
[1755629249173,3.06,177.34,177.26,5.67707863]
[1755629249370,3.06,177.34,177.26,0.03577863]
[1755629250270,3.02,177.38,177.27,5.641]
[1755629250774,3.02,177.38,177.26,5.6413]
[1755629251565,3.02,177.38,177.28,7.4992494]
[1755629251762,5.6393,177.34,177.28,7.4992494]
[1755629251960,5.6393,177.34,177.31,0.04]
[1755629252159,3.02,177.38,177.32,0.04]
[1755629252366,5.6387,177.35,177.32,0.04]
[1755629252563,3.02,177.42,177.34,0.04]
[1755629253363,5.6377,177.39,177.34,5.6789]
[1755629253664,5.6377,177.39,177.35,0.04]
[1755629253968,5.6378,177.38,177.36,0.04]
[1755629254968,3.02,177.51,177.33,0.04]
[1755629255565,3.02,177.49,177.34,5.6387]
[1755629256073,5.6376,177.39,177.34,5.6387]
[1755629256372,3.02,177.44,177.35,0.04]
[1755629257570,5.6372,177.4,177.33,0.04]
[1755629258471,3.02,177.44,177.32,7.4992494]
[1755629258972,3.02,177.45,177.3,5.6402]
[1755629259974,3.02,177.43,177.25,4.7045786]
[1755629260274,5.6402,177.31,177.25,143.1]
[1755629260474,5.6402,177.31,177.26,5.6413]
[1755629260876,5.6402,177.31,177.25,143.1]
[1755629261075,5.6402,177.31,177.28,0.04]
[1755629261668,3.02,177.35,177.25,143.1]
[1755629261869,3.02,177.39,177.29,0.04]
[1755629263174,5.639,177.34,177.3,5.6402]
[1755629263390,3.02,177.39,177.28,7.4992494]
[1755629263782,5.6397,177.32,177.28,7.5392494]
[1755629263983,3.02,177.39,177.28,7.5392494]
[1755629264282,5.6403,177.3,177.26,0.04]
[1755629264475,5.6403,177.3,177.27,0.04]
[1755629264672,3.02,177.34,177.27,0.04]
[1755629264974,5.64,177.31,177.27,0.04]
[1755629265178,3.02,177.34,177.28,0.04]
[1755629265378,3.02,177.34,177.25,143.1]
[1755629266177,3.02,177.34,177.26,0.04]
[1755629266882,3.02,177.34,177.28,0.04]
[1755629267282,5.6394,177.33,177.29,0.04]
[1755629267482,5.6394,177.33,177.28,5.6407]
[1755629267483,3.02,177.38,177.3,0.04]
[1755629268285,3.02,177.38,177.25,143.14]
[1755629269082,5.6408,177.29,177.25,143.1]
[1755629269284,5.6408,177.29,177.26,0.04]
[1755629269485,3.02,177.35,177.26,0.04]
[1755629270087,5.6405,177.3,177.26,0.04]
[1755629270288,3.02,177.35,177.27,0.04]
[1755629271289,5.64,177.31,177.27,5.6811]
[1755629271489,5.64,177.31,177.28,0.04]
[1755629273194,5.6397,177.32,177.28,0.04]
[1755629273390,3.02,177.35,177.28,0.04]
[1755629273787,5.6394,177.33,177.28,5.6806]
[1755629273984,5.6394,177.33,177.29,0.04]
[1755629274185,3.02,177.35,177.29,0.04]
[1755629274384,3.02,177.35,177.27,17.844928]
[1755629274993,5.6403,177.3,177.27,12.243828]
[1755629275793,3.02,177.35,177.25,147.8045786]
[1755629276193,5.6409,177.29,177.25,147.8045786]
[1755629276390,5.6409,177.29,177.25,147.8445786]
[1755629276593,5.6409,177.29,177.26,0.04]
[1755629276891,3.02,177.35,177.26,4.7445786]
[1755629277290,5.6408,177.29,177.26,4.7445786]
[1755629277797,3.02,177.35,177.26,4.7445786]
[1755629278398,5.6411,177.28,177.26,0.03]
[1755629278801,3.05,177.33,177.26,0.03]
[1755629279000,3.05,177.33,177.27,0.03]
[1755629280202,5.6407,177.29,177.27,0.03]
[1755629280395,5.6407,177.29,177.26,0.03]
[1755629280890,5.6404,177.3,177.27,0.03]
[1755629281096,3.05,177.33,177.27,0.03]
[1755629281298,5.6396,177.33,177.27,13.1701494]
[1755629281597,3.05,177.39,177.29,4.7045786]
[1755629281903,3.05,177.39,177.28,4.7045786]
[1755629282103,3.05,177.39,177.29,4.7045786]
[1755629282396,3.05,177.39,177.29,4.7345786]
[1755629282796,3.05,177.39,177.31,12.203828]
[1755629283003,3.05,177.39,177.32,147.6845786]
[1755629283197,3.05,177.43,177.34,5.6389]
[1755629283402,3.05,177.43,177.35,7.5292494]
[1755629283610,3.05,177.43,177.35,12.233828]
[1755629284003,3.05,177.43,177.36,4.7045786]
[1755629284604,3.05,177.49,177.4,0.03]
[1755629284804,3.05,177.49,177.41,142.96]
[1755629285006,3.05,177.49,177.41,147.6645786]
[1755629285194,5.6351,177.47,177.41,153.3011786]
[1755629285398,3.05,177.49,177.41,148.5966]
[1755629285906,3.05,177.49,177.36,142.96]
[1755629286306,5.6374,177.39,177.36,142.96]
[1755629286495,3.05,177.44,177.36,142.96]
[1755629286699,3.05,177.44,177.37,0.03]
[1755629286907,3.05,177.44,177.37,4.7345786]
[1755629287104,5.6365,177.42,177.37,0.03]
[1755629287298,5.6365,177.42,177.38,0.03]
[1755629288401,5.6368,177.41,177.38,0.03]
[1755629288604,3.05,177.44,177.36,155.163828]
[1755629288906,5.6376,177.39,177.36,142.96]
[1755629289298,3.05,177.44,177.36,142.96]
[1755629290004,6.26371466,177.55,177.36,142.96]
[1755629290005,8.688,177.37,177.36,142.96]
[1755629290203,3.05,177.37,177.31,143.02]
[1755629292501,3.05,177.37,177.25,142.94]
[1755629293399,3.05,177.37,177.2,4.72102351]
[1755629293605,3.05,177.37,177.21,142.94]
[1755629294209,3.05,177.33,177.18,121.05863885]
[1755629294505,3.05,177.33,177.18,263.99863885]
[1755629294700,3.05,177.33,177.18,264.92161534]
[1755629294905,3.05,177.33,177.18,269.64263885]
[1755629295297,3.05,177.33,177.19,5.6436]
[1755629295497,3.05,177.33,177.2,4.72102351]
[1755629296108,3.05,177.33,177.21,5.643]
[1755629296305,3.05,177.33,177.2,4.72102351]
[1755629296607,3.05,177.33,177.21,5.6429]
[1755629298108,3.05,177.33,177.2,5.6434]
[1755629298303,3.05,177.33,177.19,0.03]
[1755629299412,5.6434,177.2,177.19,0.03]
[1755629300105,5.6438,177.19,177.18,259.27761534]
[1755629300306,5.6438,177.19,177.18,142.94]
[1755629300501,7.4992494,177.3,177.14,378.94]
[1755629300706,14.3317,177.29,177.15,143.01]
[1755629301007,3.05,177.28,177.15,143.01]
[1755629302208,3.05,177.23,177.15,143.01]
[1755629302398,3.05,177.23,177.11,4.72102351]
[1755629302605,3.05,177.23,177.1,111.08676822]
[1755629302909,7.4992494,177.27,177.11,143.28]
[1755629302910,3.05,177.19,177.11,143.28]
[1755629303106,3.05,177.17,177.15,5.717e-05]
[1755629303310,8.6947,177.16,177.15,5.717e-05]
[1755629303505,3.05,177.17,177.07,0.03]
[1755629304812,0.04121039,177.14,177.07,0.03]
[1755629307611,0.04121039,177.14,177.07,5.6774]
[1755629308508,0.04121039,177.14,177.08,5.6472]
[1755629308710,0.04121039,177.14,177.07,0.03]
[1755629309313,0.04121039,177.14,177.1,5.6464]
[1755629309613,0.04121039,177.14,177.11,0.04]
[1755629310206,0.04121039,177.14,177.06,150.8192494]
[1755629310406,0.04121039,177.14,177.07,0.04]
[1755629311006,5.6468,177.1,177.08,0.04]
[1755629311205,0.04121039,177.14,177.06,150.8192494]
[1755629311509,5.6476,177.07,177.06,143.32]
[1755629311712,5.6476,177.07,177.06,134.8058]
[1755629311910,2.95,177.14,177.0,145.22]
[1755629312124,0.04111734,177.08,177.0,145.22]
[1755629315715,0.04111734,177.08,177.01,0.04]
[1755629316420,0.04111734,177.08,177.01,143.16]
[1755629317817,0.04111734,177.08,177.01,150.6592494]
[1755629318316,0.04111734,177.08,177.03,5.6486]
[1755629318514,0.04111734,177.08,177.04,0.04]
[1755629318714,2.99111734,177.08,177.01,150.6192494]
[1755629319317,5.6479,177.06,177.02,0.04]
[1755629320614,2.99111734,177.08,177.0,2.0]
[1755629320812,2.99111734,177.08,177.0,145.16]
[1755629322713,5.6483,177.05,177.01,5.6493]
[1755629322921,5.6483,177.05,177.0,145.16]
[1755629323115,2.99111734,177.08,177.01,0.04]
[1755629323325,2.95,177.08,177.01,0.04]
[1755629323625,5.68596309,177.06,177.01,5.6494]
[1755629323823,5.68596309,177.06,177.03,0.04]
[1755629324323,5.68596309,177.06,177.04,0.04]
[1755629325022,0.03786309,177.06,177.05,0.04]
[1755629326316,0.03786309,177.06,177.03,5.6887]
[1755629326522,0.03786309,177.06,177.04,0.04]
[1755629326919,0.03786309,177.06,177.02,5.6491]
[1755629327224,0.03786309,177.06,177.03,0.04]
[1755629327417,0.03786309,177.06,177.01,7.5392494]
[1755629327618,2.98786309,177.06,177.01,7.5392494]
[1755629327820,0.03786309,177.06,177.02,0.04]
[1755629328022,5.68596309,177.06,177.02,0.04]
[1755629328323,0.03786309,177.06,177.02,0.04]
[1755629328923,0.03786309,177.06,177.03,0.04]
[1755629329827,5.6485,177.05,177.03,0.04]
[1755629330127,0.03786309,177.06,177.03,0.04]
[1755629330322,0.03786309,177.06,177.02,0.04]
[1755629330522,0.03786309,177.06,177.04,0.04]
[1755629331620,0.03786309,177.06,177.05,0.04]
[1755629332824,0.03786309,177.06,177.03,5.6486]
[1755629332825,0.03786309,177.06,177.03,5.6886]
[1755629333328,0.03786309,177.06,177.04,0.04]
[1755629334230,5.68576309,177.06,177.04,0.04]
[1755629335432,0.03786309,177.06,177.0,145.16]
[1755629335929,2.95,177.03,177.0,145.16]
[1755629336122,2.95,177.02,177.0,145.16]
[1755629336328,2.95,177.05,177.0,145.16]
[1755629337430,0.03786309,177.06,177.0,145.16]
[1755629337829,2.95,177.05,176.95,143.14]
[1755629338026,2.95,177.05,176.95,150.8314]
[1755629338234,2.95,177.05,176.95,145.18]
[1755629338827,0.04179208,177.02,176.95,145.18]
[1755629339028,0.04179208,177.02,176.98,2.05]
[1755629340034,0.04179208,177.02,176.95,143.14]
[1755629340035,3.17179208,177.02,176.95,145.19]
[1755629340737,0.04179208,177.02,176.98,2.05]
[1755629340933,0.04179208,177.02,176.99,2.05]
[1755629341329,0.04179208,177.02,176.97,7.4992494]
[1755629341636,0.04179208,177.02,176.95,143.14]
[1755629341637,3.17179208,177.02,176.95,143.14]
[1755629342037,3.17179208,177.02,176.89,6.77102351]
[1755629342329,3.17179208,177.02,176.9,143.16]
[1755629342537,3.13,177.02,176.93,7.7019]
[1755629342729,3.13,177.02,176.93,2.05]
[1755629342934,299.5796458,177.14,176.89,6.22600327]
[1755629342935,3.16678659,176.98,176.89,2.05]
[1755629343126,3.16678659,176.98,176.88,143.16]
[1755629343331,3.13,176.98,176.88,143.16]
[1755629343732,0.03707639,176.95,176.88,145.21]
[1755629343937,0.03707639,176.95,176.89,2.05]
[1755629344432,0.03707639,176.95,176.89,6.77102351]
[1755629344638,0.03707639,176.95,176.91,7.4992494]
[1755629344833,379.6,177.09,176.91,7.4992494]
[1755629344834,3.13,177.02,176.92,2.05]
[1755629346437,379.6,177.09,176.92,2.05]
[1755629346438,5.6514,176.96,176.92,2.05]
[1755629346635,3.13,176.99,176.92,2.05]
[1755629346830,3.13,176.99,176.91,7.4992494]
[1755629347043,5.6517,176.95,176.91,9.5492494]
[1755629347338,3.13,176.99,176.92,2.05]
[1755629348338,5.6517,176.95,176.92,2.05]
[1755629348532,3.13,176.99,176.92,2.05]
[1755629349134,5.6513,176.96,176.92,2.05]
[1755629349828,5.6515,176.95,176.92,2.05]
[1755629350243,3.13,176.99,176.92,2.05]
[1755629350445,3.13,176.99,176.93,2.05]
[1755629350738,3.13,177.03,176.93,15.2011494]
[1755629350939,3.13,177.03,176.94,143.18]
[1755629351235,5.6507,176.98,176.94,145.23]
[1755629351740,5.6507,176.98,176.95,2.05]
[1755629352634,5.6509,176.97,176.94,143.18]
[1755629352835,3.13,177.01,176.94,143.18]
[1755629354038,5.6506,176.98,176.94,143.18]
[1755629354339,5.6506,176.98,176.94,145.23]
[1755629354840,5.6508,176.97,176.94,145.23]
[1755629355136,3.13,177.01,176.94,143.18]
[1755629355443,3.13,177.01,176.94,145.23]
[1755629355940,11.2961,177.06,176.94,143.18]
[1755629356140,379.6,177.09,176.94,143.18]
[1755629356141,7.4992494,177.08,176.94,143.18]
[1755629356438,3.13,176.95,176.88,4.72102351]
[1755629356642,3.13,176.95,176.89,143.18]
[1755629356942,5.6526,176.92,176.89,143.18]
[1755629357141,5.6526,176.92,176.89,145.23]
[1755629357336,3.13,176.95,176.89,145.23]
[1755629357540,3.13,176.95,176.89,143.18]
[1755629359140,3.13,176.95,176.85,12.22027291]
[1755629359444,3.13,176.95,176.83,293.86596811]
[1755629359641,3.13,176.95,176.8,5.656]
[1755629359938,7.4992494,176.88,176.75,4.72102351]
[1755629360131,3.13,176.87,176.76,5.6575]
[1755629360339,3.13,176.87,176.74,9.5492494]
[1755629362247,3.13,176.87,176.72,2.05]
[1755629362546,3.13,176.87,176.76,2.05]
[1755629362742,3.13,176.87,176.8,5.6561]
[1755629362949,3.13,176.94,176.8,2.05]
[1755629363137,3.13,176.94,176.75,2.05]
[1755629363337,3.13,176.94,176.76,5.6575]
[1755629363537,7.4992494,176.91,176.75,2.05]
[1755629363742,3.13,176.9,176.75,2.05]
[1755629364047,3.13,176.85,176.76,2.05]
[1755629364747,5.6558,176.82,176.76,2.05]
[1755629364935,3.13,176.85,176.76,2.05]
[1755629365140,3.13,176.91,176.82,2.05]
[1755629366147,160.16291644,176.92,176.82,2.05]
[1755629366346,3.13,176.95,176.86,2.05]
[1755629366648,3.13,177.02,176.86,2.05]
[1755629366847,3.13,177.02,176.87,7.4992494]
[1755629367049,3.13,176.99,176.82,2.05]
[1755629367542,3.13,176.95,176.79,2.05]
[1755629368545,3.13,176.95,176.84,7.4992494]
[1755629368743,3.13,176.95,176.85,2.03]
[1755629369548,379.94,177.03,176.9,2.03]
[1755629369549,2.89,177.0,176.9,2.03]
[1755629372655,2.89,177.0,176.93,0.03623433]
[1755629373049,5.6517,176.94,176.93,0.03623433]
[1755629374156,8.5417,176.94,176.93,0.03623433]
[1755629374649,8.5417,176.94,176.93,3.433e-05]
[1755629374959,3.45,176.94,176.82,2.03]
[1755629375149,2.89,176.94,176.82,2.03]
[1755629375351,2.89,176.94,176.81,110.22043565]
[1755629375547,2.89,176.94,176.81,112.25043565]
[1755629376356,0.03903514,176.89,176.81,112.25043565]
[1755629376657,0.03903514,176.89,176.79,2.03]
[1755629377048,2.89,176.9,176.79,2.03]
[1755629377253,379.94,177.03,176.83,2.03]
[1755629377254,2.89,176.94,176.83,2.03]
[1755629377455,0.04297106,176.86,176.83,2.03]
[1755629377755,2.89,176.94,176.83,2.02837467]
[1755629378152,2.89,176.94,176.83,1.99]
[1755629378861,2.89,176.94,176.87,0.04034378]
[1755629379356,2.89,176.94,176.77,6.22600327]
[1755629379357,143.7,177.02,176.77,2.03]
[1755629379557,2.89,176.91,176.77,2.03]
[1755629380754,0.03591417,176.86,176.77,2.03]
[1755629380962,2.89,176.85,176.77,2.03]
[1755629381153,2.89,176.85,176.76,143.24]
[1755629381354,2.89,176.85,176.73,3.02]
[1755629381953,0.03833232,176.81,176.73,3.02]
[1755629382658,5.6579,176.75,176.73,3.02]
[1755629382859,0.03833232,176.81,176.73,3.02]
[1755629383064,2.89,176.82,176.73,3.02]
[1755629383257,2.89,176.82,176.7,5.6591]
[1755629383455,0.03726668,176.79,176.69,7.4992494]
[1755629383656,0.03726668,176.79,176.7,3.02]
[1755629383852,0.03726668,176.79,176.73,3.02]
[1755629384452,0.03726668,176.79,176.69,10.5192494]
[1755629384962,0.03726668,176.79,176.71,5.659]
[1755629385162,0.03726668,176.79,176.7,3.02]
[1755629385557,2.92726668,176.79,176.7,3.02]
[1755629390160,2.92726668,176.79,176.7,8.6793]
[1755629390362,2.92726668,176.79,176.7,3.02]
[1755629390669,5.6577,176.76,176.7,8.6794]
[1755629390863,0.03726668,176.79,176.7,3.02]
[1755629391063,2.89,176.82,176.7,3.02]
[1755629391464,0.04169146,176.76,176.7,3.02]
[1755629393070,2.93169146,176.76,176.67,145.9]
[1755629393567,2.93169146,176.76,176.63,3.02]
[1755629393768,2.93169146,176.76,176.62,379.92]
[1755629394068,2.89,176.74,176.59,3.02]
[1755629394256,0.04189494,176.71,176.59,3.02]
[1755629394457,2.89,176.7,176.59,3.02]
[1755629394966,0.03869218,176.66,176.59,3.02]
[1755629395771,0.03869218,176.66,176.58,145.62]
[1755629397365,0.03869218,176.66,176.58,148.64]
[1755629397972,0.03869218,176.66,176.59,5.6627]
[1755629398172,0.03869218,176.66,176.58,148.64]
[1755629399172,3.05,176.65,176.58,145.62]
[1755629399375,3.05,176.65,176.52,383.09]
[1755629400273,0.04330385,176.6,176.55,2.95]
[1755629400473,0.04330385,176.6,176.56,2.95]
[1755629400671,0.04330385,176.6,176.52,380.14]
[1755629400672,0.04330385,176.6,176.52,383.09]
[1755629401174,0.04330385,176.6,176.52,2.95]
[1755629401570,0.04330385,176.6,176.52,10.4492494]
[1755629401772,0.04330385,176.6,176.53,2.95]
[1755629402578,0.04330385,176.6,176.51,146.04]
[1755629402579,0.04330385,176.6,176.59,2.95]
[1755629402874,0.04330385,176.6,176.55,146.16]
[1755629403087,0.04330385,176.6,176.56,2.95]
[1755629403386,5.6635,176.58,176.56,2.95]
[1755629403584,3.05,176.65,176.55,146.16]
[1755629403780,0.04118792,176.6,176.56,2.95]
[1755629404184,0.04118792,176.6,176.55,149.11]
[1755629404382,0.04118792,176.6,176.56,2.95]
[1755629404578,0.04118792,176.6,176.57,2.95]
[1755629406386,0.04118792,176.6,176.55,149.11]
[1755629406886,0.04118792,176.6,176.56,2.95]
[1755629408387,0.04118792,176.6,176.55,146.16]
[1755629408584,0.04118792,176.6,176.56,2.95]
[1755629408780,0.04118792,176.6,176.55,146.16]
[1755629408987,0.04118792,176.6,176.56,2.95]
[1755629409786,0.04118792,176.6,176.55,146.16]
[1755629409982,0.04118792,176.6,176.55,149.11]
[1755629410388,3.09118792,176.6,176.55,146.16]
[1755629410588,3.09118792,176.6,176.55,149.11]
[1755629410990,3.05,176.59,176.49,2.95]
[1755629411185,3.05,176.59,176.51,145.8]
[1755629411490,3.05,176.59,176.51,151.4653]
[1755629411691,0.03720836,176.57,176.51,151.4653]
[1755629412391,0.03720836,176.57,176.51,145.8]
[1755629414591,3.08720836,176.57,176.51,145.8]
[1755629415885,0.03720836,176.57,176.51,145.8]
[1755629416089,0.03720836,176.57,176.53,2.95]
[1755629416297,0.03720836,176.57,176.51,145.8]
[1755629417796,0.03720836,176.57,176.51,151.4653]
[1755629418095,0.03720836,176.57,176.5,145.96]
[1755629418794,3.08720836,176.57,176.5,145.96]
[1755629419493,5.6642,176.55,176.5,145.96]
[1755629419794,0.03720836,176.57,176.5,148.91]
[1755629419991,0.03720836,176.57,176.51,5.6652]
[1755629421298,5.6644,176.55,176.51,5.6652]
[1755629421498,5.6644,176.55,176.53,2.95]
[1755629421888,0.03720836,176.57,176.5,145.96]
[1755629422596,0.03720836,176.57,176.51,145.64]
[1755629422797,0.03720836,176.57,176.5,2.95]
[1755629422996,0.03720836,176.57,176.51,145.6]
[1755629423196,0.03720836,176.57,176.52,2.95]
[1755629423388,0.03720836,176.57,176.51,145.6]
[1755629423593,5.6628,176.6,176.52,7.4992494]
[1755629423794,5.6628,176.6,176.54,2.95]
[1755629423992,3.05,176.64,176.54,2.95]
[1755629424197,3.05,176.64,176.53,0.03641964]
[1755629424198,5.6622,176.62,176.58,2.95]
[1755629424498,3.05,176.64,176.58,148.79]
[1755629425599,3.05,176.68,176.59,0.03572259]
[1755629426096,3.05,176.68,176.6,151.4025]
[1755629426593,11.3176,176.72,176.61,5.6622]
[1755629426796,380.14,176.79,176.64,7.4992494]
[1755629426992,3.05,176.78,176.65,2.95]
[1755629427189,3.05,176.78,176.66,145.88]
[1755629427395,3.05,176.78,176.7,0.03583343]
[1755629429601,3.05,176.78,176.61,148.93]
[1755629429901,3.14,176.75,176.61,3.05]
[1755629430794,0.03803795,176.7,176.61,3.05]
[1755629432596,3.14,176.69,176.56,10.5492494]
[1755629432791,3.14,176.69,176.56,3.05]
[1755629432992,3.14,176.69,176.54,145.74]
[1755629433393,0.03610296,176.64,176.54,145.74]
[1755629433599,0.03610296,176.64,176.55,3.05]
[1755629434801,3.14,176.63,176.54,145.74]
[1755629435502,0.03637992,176.6,176.54,145.74]
[1755629436704,0.03637992,176.6,176.54,148.79]
[1755629439101,3.17637992,176.6,176.54,145.74]
[1755629439799,3.17637992,176.6,176.5,153.29307365]
[1755629440810,3.17637992,176.6,176.5,158.95867365]
[1755629441405,3.17637992,176.6,176.5,153.29307365]
[1755629441809,5.6643,176.55,176.5,158.95867365]
[1755629442010,3.17637992,176.6,176.5,150.24307365]
[1755629442203,3.14,176.6,176.5,150.24307365]
[1755629442605,0.04134746,176.57,176.5,150.24307365]
[1755629443206,0.04134746,176.57,176.52,4.74307365]
[1755629443411,0.04134746,176.57,176.54,3.05]
[1755629443804,0.04134746,176.57,176.56,3.05]
[1755629444006,0.04134746,176.57,176.55,145.42]
[1755629444507,0.04134746,176.57,176.55,148.47]
[1755629445701,0.04134746,176.57,176.56,3.05]
[1755629445904,3.14,176.64,176.56,3.05]
[1755629446512,3.14,176.64,176.56,13.45687365]
[1755629446914,3.14,176.64,176.56,7.79307365]
[1755629447512,3.14,176.64,176.58,0.0357905]
[1755629450416,3.14,176.64,176.58,9.05e-05]
[1755629450917,8.8029,176.59,176.58,9.05e-05]
[1755629453021,0.56,176.59,176.51,4.74307365]
[1755629453223,3.14,176.58,176.47,4.74307365]
[1755629453622,3.14,176.58,176.48,3.05]
[1755629455322,3.14,176.58,176.46,150.96307365]
[1755629455524,3.14,176.57,176.44,4.74307365]
[1755629455918,3.14,176.57,176.43,385.28307365]
[1755629456117,3.14,176.57,176.44,3.05]
[1755629456517,0.03771235,176.52,176.44,3.05]
[1755629457024,3.14,176.51,176.41,153.95307365]
[1755629457229,3.14,176.51,176.41,149.21]
[1755629457618,3.14,176.51,176.41,3.05]
[1755629457820,3.17735318,176.48,176.38,4.74307365]
[1755629458024,3.17735318,176.48,176.36,10.41327365]
[1755629458228,3.17735318,176.48,176.37,2.97]
[1755629458430,3.14,176.48,176.37,2.97]
[1755629459732,5.6687,176.41,176.36,5.67]
[1755629459931,196.72218564,176.48,176.38,2.97]
[1755629460230,196.72218564,176.48,176.35,156.75357365]
[1755629460231,2.9,176.47,176.35,146.34]
[1755629460535,2.9,176.47,176.32,127.97]
[1755629460536,574.30218564,176.48,176.32,117.47]
[1755629460737,5.6703,176.36,176.33,2.97]
[1755629461033,2.9,176.47,176.34,2.97]
[1755629461229,2.9,176.46,176.33,4.74307365]
[1755629461536,2.9,176.46,176.32,117.47]
[1755629462238,7.4992494,176.43,176.32,117.47]
[1755629462434,2.9,176.4,176.32,117.47]
[1755629463728,0.04213563,176.41,176.32,111.8]
[1755629463934,7.4992494,176.4,176.32,111.8]